bitfinex/quotes_ETHUSD_20251119
["timestamp","ask_amount","ask_price","bid_price","bid_amount"]
[1763572882915,0.1295,2921.9,2920.4,0.405504]
[1763572883329,0.1295,2921.9,2920.6,0.405504]
[1763572883625,0.1992,2922.5,2920.8,0.405504]
[1763572884129,0.002,2922.8,2921.0,0.405504]
[1763572884487,0.002,2922.8,2921.4,0.405504]
[1763572885139,0.002,2922.8,2922.7,0.598004]
[1763572885447,0.17877966,2924.0,2922.7,0.598004]
[1763572885448,0.4587,2925.2,2923.0,0.405504]
[1763572885624,0.1902,2925.3,2923.4,1.31249664]
[1763572885797,0.1902,2925.3,2923.8,0.405504]
[1763572886336,0.1902,2925.3,2924.0,0.405504]
[1763572886533,0.6489,2926.0,2924.0,0.405504]
[1763572886833,0.1641,2925.9,2924.4,1.31249664]
[1763572887133,0.002,2926.5,2924.4,1.31249664]
[1763572887134,0.4607,2926.5,2924.4,1.31249664]
[1763572887335,0.4607,2926.5,2924.6,0.405504]
[1763572887712,0.4607,2926.5,2924.8,0.405504]
[1763572887912,8.02292362,2926.3,2924.0,0.4643]
[1763572888096,0.90699264,2925.7,2923.5,0.1925]
[1763572888726,0.6228,2925.6,2923.5,0.6568]
[1763572889236,0.4587,2925.5,2923.7,0.405504]
[1763572889442,0.4587,2925.5,2923.5,0.1925]
[1763572889619,0.90699264,2924.7,2921.9,8.02292362]
[1763572889928,0.89299163,2924.6,2922.4,8.02292362]
[1763572890100,0.0951,2924.9,2922.8,0.4643]
[1763572890101,0.4587,2924.8,2922.8,0.4643]
[1763572890293,0.4587,2924.8,2922.9,0.405504]
[1763572890492,0.0951,2924.9,2922.9,8.42842762]
[1763572890830,8.02292362,2925.9,2923.1,0.405504]
[1763572890831,0.6397,2924.8,2923.1,0.405504]
[1763572891127,0.6397,2924.8,2923.0,1.37129264]
[1763572891128,0.6397,2924.8,2923.0,0.4643]
[1763572891326,0.4587,2924.7,2923.1,0.4643]
[1763572891691,0.4587,2924.7,2922.7,0.1925]
[1763572891895,0.90699264,2924.3,2922.7,0.40784888]
[1763572892093,0.4587,2924.7,2922.8,0.6568]
[1763572892329,0.181,2924.8,2922.8,0.6568]
[1763572892330,0.4587,2924.6,2922.8,0.6568]
[1763572892631,0.4587,2924.6,2922.9,0.4643]
[1763572892931,0.181,2924.8,2923.0,0.405504]
[1763572893323,0.4587,2925.4,2923.1,0.4643]
[1763572893907,0.4587,2925.4,2923.2,3.42090859]
[1763572894108,8.02292362,2925.3,2923.3,0.38852086]
[1763572894319,0.4587,2925.4,2923.3,0.38852086]
[1763572894524,0.4587,2925.3,2923.4,0.4643]
[1763572894709,0.4587,2925.3,2923.3,0.38852086]
[1763572894710,0.90699264,2925.2,2923.3,0.38852086]
[1763572894915,0.90699264,2925.2,2923.0,3.88540694]
[1763572895111,0.4587,2925.1,2923.0,3.88540694]
[1763572895437,0.4587,2925.1,2923.0,0.4643]
[1763572895639,0.4587,2925.1,2922.8,0.1925]
[1763572895946,0.90699264,2924.7,2922.8,0.1925]
[1763572896236,1.53269163,2924.6,2922.8,0.1925]
[1763572896439,1.53269163,2924.6,2922.8,3.61387535]
[1763572896600,0.5777,2924.5,2922.9,0.4643]
[1763572896997,0.4587,2924.4,2923.0,0.405504]
[1763572897709,0.4587,2924.4,2922.4,0.1925]
[1763572897925,0.4587,2924.4,2922.9,0.405504]
[1763572898140,0.4587,2924.4,2922.5,4.12534784]
[1763572898141,0.90699264,2924.2,2922.5,0.7036416]
[1763572898301,0.90699264,2924.2,2922.4,0.6515]
[1763572898506,0.4532,2924.1,2922.4,0.6515]
[1763572898915,0.4532,2924.1,2922.4,0.1925]
[1763572899113,0.4532,2924.1,2922.5,0.459]
[1763572899410,0.119,2924.5,2922.6,0.405504]
[1763572899610,0.5722,2924.5,2922.6,0.405504]
[1763572899798,0.5722,2924.5,2922.8,0.405504]
[1763572899799,0.119,2924.5,2922.8,0.405504]
[1763572899997,0.4532,2924.4,2923.0,0.405504]
[1763572900408,0.4532,2924.4,2923.2,0.405504]
[1763572901051,0.4532,2924.4,2922.4,0.1925]
[1763572901209,0.4532,2924.4,2922.8,0.405504]
[1763572901742,0.4532,2924.4,2923.0,0.405504]
[1763572902144,0.1845,2924.9,2923.1,0.864504]
[1763572902350,0.121,2925.1,2923.1,1.89149664]
[1763572902517,0.121,2925.1,2923.2,0.864504]
[1763572902714,0.121,2925.1,2923.2,0.983504]
[1763572902909,0.121,2925.1,2923.4,0.405504]
[1763572903225,0.121,2925.1,2923.6,0.405504]
[1763572903423,0.121,2925.1,2923.7,0.12]
[1763572903623,0.121,2925.1,2923.8,0.525504]
[1763572903837,0.121,2925.1,2923.8,0.405504]
[1763572904145,0.121,2925.1,2925.0,4.00960741]
[1763572904146,0.002,2925.1,2925.0,4.00960741]
[1763572904352,0.002,2925.1,2925.0,4.87246003]
[1763572904552,0.1727802,2928.3,2926.4,0.1633]
[1763572904859,0.002,2929.0,2926.5,1.57574859]
[1763572905039,0.4532,2928.9,2927.2,0.405504]
[1763572905353,0.12,2928.8,2926.9,0.405504]
[1763572905711,0.12,2928.8,2927.1,0.405504]
[1763572905712,0.5732,2928.8,2927.1,0.405504]
[1763572906047,0.5732,2928.8,2927.3,0.405504]
[1763572906356,0.12,2928.8,2927.5,0.405504]
[1763572906885,0.12,2928.8,2927.6,0.405504]
[1763572907252,0.12,2928.8,2927.8,0.405504]
[1763572907554,0.12,2928.8,2927.4,1.31249664]
[1763572907555,0.12,2928.8,2928.0,0.405504]
[1763572907913,0.12,2928.8,2927.9,0.459]
[1763572907914,0.12,2928.8,2928.2,0.405504]
[1763572908733,0.12,2928.8,2927.9,0.459]
[1763572908914,0.12,2928.8,2927.4,0.1853]
[1763572908915,0.4532,2928.7,2927.4,0.1853]
[1763572909241,0.4532,2928.7,2926.7,3.41672502]
[1763572909427,0.4532,2928.7,2926.8,0.81984955]
[1763572910045,0.4532,2928.7,2926.9,0.459]
[1763572910354,0.4532,2928.7,2926.9,3.87557759]
[1763572910940,0.4532,2928.7,2927.0,0.864504]
[1763572911474,0.4532,2928.7,2926.9,6.83316168]
[1763572911475,0.4532,2928.7,2927.2,0.405504]
[1763572911847,0.12,2928.8,2927.4,0.405504]
[1763572912061,0.5732,2928.8,2927.4,0.405504]
[1763572912383,0.5732,2928.8,2927.3,0.459]
[1763572912384,0.5732,2928.8,2927.6,0.405504]
[1763572912586,0.4532,2928.7,2927.0,0.405504]
[1763572912872,0.4532,2928.7,2927.1,0.42810862]
[1763572913181,0.4532,2928.7,2927.2,0.405504]
[1763572913344,0.12,2928.8,2927.2,0.405504]
[1763572913550,0.4532,2928.7,2927.4,0.405504]
[1763572913959,0.4532,2928.7,2927.0,0.90699264]
[1763572913960,0.4532,2928.7,2926.8,0.36084955]
[1763572914260,0.4532,2928.7,2926.8,0.459]
[1763572914572,0.4532,2928.7,2926.8,7.29237014]
[1763572914876,0.4532,2928.7,2926.9,0.405504]
[1763572915334,0.4532,2928.7,2926.9,0.864504]
[1763572915731,0.4532,2928.7,2927.1,0.405504]
[1763572916376,0.1845,2927.2,2926.0,0.6223]
[1763572916671,0.12,2927.1,2926.1,0.459]
[1763572916884,0.12,2927.0,2926.2,0.4039935]
[1763572917437,0.12,2927.0,2926.0,0.6223]
[1763572917670,0.12,2927.0,2926.1,0.459]
[1763572917836,0.12,2927.0,2926.2,0.405504]
[1763572918263,0.12,2927.0,2924.8,3.41892458]
[1763572918264,0.4532,2926.9,2925.4,0.459]
[1763572918503,0.4532,2926.9,2925.5,0.405504]
[1763572918800,0.4532,2926.9,2925.6,0.63614966]
[1763572919096,0.12,2927.0,2925.6,0.63614966]
[1763572919257,0.1845,2926.9,2926.1,0.001]
[1763572919790,0.1845,2926.9,2926.1,0.1863]
[1763572920160,0.1845,2926.9,2926.1,0.001]
[1763572920356,0.12,2927.0,2926.2,0.864504]
[1763572920760,0.12,2927.0,2926.2,0.405504]
[1763572921001,0.12,2927.8,2926.4,0.405504]
[1763572921169,0.12,2927.8,2926.1,0.1863]
[1763572921170,0.122,2928.7,2927.4,0.405504]
[1763572921608,0.4532,2928.6,2927.4,0.405504]
[1763572921896,0.4532,2928.6,2926.8,0.459]
[1763572922139,0.90699264,2928.2,2925.9,3.8777518]
[1763572922284,0.1845,2926.9,2926.1,0.001]
[1763572922479,1.12701774,2928.1,2926.1,0.001]
[1763572922480,0.3045,2927.2,2926.1,0.22047518]
[1763572922708,0.12,2927.2,2926.2,0.459]
[1763572923015,0.12,2927.2,2926.3,0.405504]
[1763572923884,0.12,2927.2,2926.4,0.405504]
[1763572924204,0.12,2927.2,2926.4,0.864504]
[1763572924406,0.12,2927.2,2926.5,3.41705108]
[1763572924611,0.12,2927.2,2926.1,1.09329264]
[1763572924612,0.12,2927.2,2926.6,0.76987066]
[1763572924786,0.12,2927.2,2926.1,3.60380759]
[1763572924984,0.12,2927.2,2926.1,0.1863]
[1763572925292,0.12,2927.2,2926.1,7.48032896]
[1763572925618,0.5732,2927.2,2926.1,0.001]
[1763572925919,6.75818478,2926.8,2926.1,0.001]
[1763572926080,2.39651112,2926.7,2926.1,0.001]
[1763572926281,0.4532,2926.6,2926.1,0.001]
[1763572927341,0.4532,2926.6,2925.6,0.001]
[1763572927342,4.0582,2926.6,2925.6,0.001]
[1763572927493,0.90699264,2926.0,2925.6,0.001]
[1763572927824,0.12,2925.9,2925.6,0.001]
[1763572928203,0.12,2925.9,2923.6,3.42035541]
[1763572928204,0.90699264,2925.6,2923.4,0.1926]
[1763572928396,0.90699264,2925.6,2923.4,0.6788]
[1763572928397,0.76651774,2925.5,2923.4,0.6788]
[1763572928624,0.76651774,2925.5,2922.3,0.1853]
[1763572928625,0.90699264,2925.1,2922.9,0.4862]
[1763572928789,0.12,2925.0,2922.9,0.4862]
[1763572928989,0.5919,2925.0,2923.0,0.03421142]
[1763572929199,0.1941,2925.8,2923.6,0.90699264]
[1763572929397,0.4719,2925.7,2923.7,0.6788]
[1763572929600,0.4719,2925.7,2923.8,0.405504]
[1763572929828,1.31701774,2925.7,2923.7,0.6788]
[1763572930032,1.31701774,2925.7,2923.8,0.4862]
[1763572930227,0.4719,2925.6,2923.9,0.405504]
[1763572930429,0.4719,2925.6,2924.1,0.405504]
[1763572930629,0.4719,2925.6,2923.7,0.1926]
[1763572930830,0.4719,2925.6,2922.9,0.4862]
[1763572930831,0.405504,2925.5,2922.9,0.4862]
[1763572931129,0.405504,2925.1,2922.9,0.4862]
[1763572931314,0.12,2925.0,2922.9,0.4862]
[1763572931832,0.4719,2924.9,2922.9,0.4862]
[1763572932035,0.4719,2924.9,2923.0,0.405504]
[1763572932403,0.4719,2924.9,2923.1,0.4862]
[1763572932826,0.4719,2924.9,2923.2,0.405504]
[1763572933272,0.4719,2924.9,2923.4,0.405504]
[1763572934106,0.4719,2924.9,2923.6,0.405504]
[1763572934513,0.4719,2924.9,2923.6,3.82591119]
[1763572934719,0.4719,2924.9,2923.7,0.43121112]
[1763572935116,0.12,2925.0,2923.8,0.405504]
[1763572935437,0.12,2925.0,2923.7,0.91741112]
[1763572935843,0.4719,2924.9,2923.7,0.43121112]
[1763572936138,0.405504,2924.8,2923.3,0.1926]
[1763572936505,0.405504,2924.7,2923.4,0.001]
[1763572936701,0.405504,2924.7,2923.4,0.4872]
[1763572936929,0.4719,2924.8,2923.5,0.41005871]
[1763572937143,0.12,2925.0,2923.5,0.41005871]
[1763572937144,0.12,2925.0,2923.6,0.0342044]
[1763572937315,0.12,2925.0,2923.7,0.405504]
[1763572937513,0.12,2925.0,2923.8,0.4862]
[1763572938012,0.12,2925.0,2924.2,1.31249664]
[1763572938217,0.12,2925.0,2924.4,0.405504]
[1763572938426,0.12,2925.0,2924.9,0.1926]
[1763572938671,0.12,2925.0,2924.4,0.405504]
[1763572938672,0.12,2925.0,2924.5,4.09815635]
[1763572938954,0.12,2925.0,2924.5,0.6788]
[1763572939159,0.12,2925.0,2924.3,4.1846639]
[1763572939160,0.12,2925.0,2924.3,0.76507992]
[1763572939369,0.5919,2925.0,2923.7,3.9065029]
[1763572939867,0.12,2925.0,2923.4,0.001]
[1763572940169,0.4719,2924.9,2923.5,0.4862]
[1763572940664,0.4719,2924.9,2923.6,3.42044055]
[1763572940830,0.4719,2924.9,2923.4,0.001]
[1763572940831,0.405504,2924.8,2923.4,0.001]
[1763572941332,0.405504,2924.6,2923.5,0.34217261]
[1763572941557,0.4719,2924.7,2923.4,0.001]
[1763572941762,0.4719,2924.7,2923.4,0.4872]
[1763572941969,0.4719,2924.7,2923.4,3.90776512]
[1763572942146,0.12,2925.0,2923.4,7.32843967]
[1763572942324,0.12,2925.0,2923.5,0.4862]
[1763572942520,0.12,2925.0,2923.6,0.73284397]
[1763572942735,0.4719,2924.9,2923.6,0.73284397]
[1763572942940,0.4719,2924.9,2923.5,0.4862]
[1763572943151,0.4719,2924.9,2923.5,3.90668553]
[1763572943377,0.4719,2924.9,2923.5,7.32724582]
[1763572943663,0.4719,2924.9,2923.4,0.001]
[1763572943866,0.4719,2924.9,2923.4,3.42164421]
[1763572944072,0.405504,2924.4,2923.4,0.36242442]
[1763572944237,0.528104,2924.8,2923.4,0.001]
[1763572944435,0.4719,2924.7,2923.4,0.001]
[1763572944642,1.37889264,2924.7,2923.4,0.001]
[1763572944838,0.4849,2924.6,2923.4,0.001]
[1763572946772,1.39189264,2924.6,2923.4,0.001]
[1763572946971,0.94136331,2924.5,2923.4,0.001]
[1763572947172,0.4849,2924.6,2923.4,0.4627]
[1763572947758,4.63459264,2924.8,2923.4,0.4627]
[1763572948073,0.12,2925.0,2923.5,0.43970957]
[1763572948501,0.12,2925.0,2923.7,0.405504]
[1763572948774,0.12,2925.0,2923.9,0.405504]
[1763572948935,0.12,2925.0,2924.0,0.654]
[1763572949378,0.12,2925.0,2924.1,0.4617]
[1763572949680,0.1919,2925.9,2924.2,0.405504]
[1763572950143,0.1919,2925.9,2924.4,0.405504]
[1763572950528,0.4849,2925.8,2924.5,0.4617]
[1763572950770,0.1919,2925.9,2924.6,6.83854202]
[1763572950936,0.1919,2925.9,2924.7,0.7300242]
[1763572951131,0.119,2926.1,2924.7,1.1917242]
[1763572951337,0.119,2926.1,2924.8,0.867204]
[1763572951836,0.119,2926.1,2924.9,0.4617]
[1763572952340,0.119,2926.1,2925.0,0.531304]
[1763572952886,0.119,2926.1,2925.1,0.4617]
[1763572953045,0.119,2926.1,2925.2,10.25570901]
[1763572953249,0.119,2926.1,2925.3,0.44511443]
[1763572953451,0.119,2926.1,2925.4,0.405504]
[1763572953848,0.119,2926.1,2925.3,1.81380707]
[1763572953849,0.119,2926.1,2925.3,0.44511443]
[1763572954054,0.119,2926.1,2925.5,0.4617]
[1763572954376,0.119,2926.1,2925.4,0.4617]
[1763572954585,0.002,2926.1,2925.5,0.405504]
[1763572954935,0.002,2926.1,2925.5,0.4617]
[1763572955135,0.002,2926.1,2925.6,6.83620452]
[1763572955438,0.002,2926.1,2925.7,0.72979045]
[1763572955638,0.002,2926.1,2925.7,1.19149045]
[1763572956106,0.002,2926.1,2925.8,0.4617]
[1763572956301,0.002,2926.1,2925.9,0.405504]
[1763572956503,0.002,2926.7,2926.4,0.405504]
[1763572957008,0.002,2926.7,2926.6,0.405504]
[1763572957210,0.002,2926.7,2926.6,4.72943096]
[1763572957420,0.002,2926.7,2926.6,5.19113096]
[1763572957709,0.002,2926.7,2926.6,3.87863432]
[1763572957915,0.002,2926.7,2926.6,4.28413832]
[1763572958101,0.002,2926.7,2926.6,3.87863432]
[1763572958299,0.002,2926.7,2926.6,5.19113096]
[1763572958610,0.002,2927.7,2926.8,0.405504]
[1763572958913,0.4516,2927.6,2926.3,3.60958462]
[1763572959080,0.4516,2927.6,2926.3,7.02686924]
[1763572959281,0.42960075,2927.1,2925.6,0.4844]
[1763572959812,0.42960075,2927.1,2925.2,10.25570901]
[1763572959813,0.42960075,2927.1,2925.7,0.4844]
[1763572961080,0.405504,2927.0,2925.3,1.39139264]
[1763572961286,0.1975,2926.9,2925.5,0.90699264]
[1763572961473,0.119,2926.8,2925.5,0.90699264]
[1763572961807,0.5706,2926.8,2925.4,0.4844]
[1763572962119,0.4516,2926.7,2925.4,0.4844]
[1763572962569,0.119,2926.8,2925.4,0.4844]
[1763572962570,0.119,2926.8,2925.5,0.03418219]
[1763572962772,0.119,2926.8,2925.4,0.4844]
[1763572962969,0.119,2926.8,2925.5,0.405504]
[1763572963170,0.119,2926.8,2925.6,10.25430678]
[1763572963407,0.119,2926.8,2925.7,0.90699264]
[1763572963607,0.119,2926.8,2925.7,1.39139264]
[1763572963812,0.119,2926.8,2925.8,0.889904]
[1763572964043,0.119,2926.8,2926.0,0.405504]
[1763572964250,0.119,2926.8,2926.1,0.6705]
[1763572964554,0.002,2927.7,2926.2,0.405504]
[1763572964728,0.002,2927.7,2927.3,0.1861]
[1763572965056,0.002,2927.7,2927.4,0.405504]
[1763572965259,0.002,2927.7,2927.6,1.31249664]
[1763572965750,0.002,2927.7,2927.6,1.79689664]
[1763572966044,0.002,2927.7,2927.5,0.90699264]
[1763572966349,0.002,2927.7,2927.5,1.39139264]
[1763572966649,0.002,2927.7,2927.6,0.4844]
[1763572967507,0.002,2927.7,2927.6,4.80715982]
[1763572967747,0.002,2927.7,2927.6,5.21266382]
[1763572968048,0.121,2929.0,2927.7,1.31249664]
[1763572968370,0.002,2929.0,2928.6,0.591604]
[1763572968516,0.002,2929.0,2928.6,1.076004]
[1763572969459,0.002,2929.0,2928.6,5.39759747]
[1763572970321,0.002,2929.0,2928.6,4.32159347]
[1763572970848,0.002,2929.0,2928.6,4.80599347]
[1763572971055,0.002,2929.0,2928.6,4.32159347]
[1763572971232,0.002,2929.0,2928.3,0.1861]
[1763572971557,0.0998,2928.9,2928.3,4.3218926]
[1763572971717,0.002,2929.0,2928.4,0.77369522]
[1763572971918,0.002,2929.0,2928.5,0.405504]
[1763572972257,0.002,2929.0,2928.5,0.889904]
[1763572972566,0.002,2929.0,2928.5,0.405504]
[1763572972744,0.002,2929.0,2928.4,0.77369522]
[1763572972913,0.4536,2928.7,2927.4,3.90034757]
[1763572973119,0.4536,2928.7,2927.5,3.90028385]
[1763572973541,0.4536,2928.7,2927.3,0.67337337]
[1763572973738,0.4536,2928.7,2927.3,4.08947116]
[1763572973941,0.4536,2928.7,2927.3,3.41609779]
[1763572974172,0.405504,2928.6,2927.4,0.6832315]
[1763572974466,0.405504,2928.6,2927.2,3.41614701]
[1763572974618,0.405504,2928.4,2926.0,3.41759042]
[1763572974820,0.405504,2928.4,2926.8,0.66993113]
[1763572975036,0.4516,2928.3,2926.7,6.83358937]
[1763572975365,0.4516,2928.3,2926.7,0.90699264]
[1763572975658,0.4516,2928.3,2926.9,3.41658409]
[1763572975817,0.4516,2928.3,2927.0,0.94115731]
[1763572976016,0.4516,2928.3,2927.0,1.39139264]
[1763572976318,0.4516,2928.3,2927.1,0.6705]
[1763572976753,0.4536,2928.7,2927.3,0.405504]
[1763572976961,0.002,2928.7,2927.3,0.405504]
[1763572977137,0.002,2928.7,2927.5,0.405504]
[1763572977325,0.002,2928.7,2927.4,0.4844]
[1763572977527,0.002,2928.7,2927.7,1.31249664]
[1763572977830,0.002,2928.7,2928.6,0.1414]
[1763572978146,0.002,2928.7,2928.6,0.546904]
[1763572978313,0.002,2928.7,2928.6,1.031304]
[1763572978722,0.002,2928.7,2928.6,1.71258252]
[1763572979464,0.002,2928.7,2928.6,0.82267852]
[1763572979648,0.002,2928.7,2928.6,5.62867199]
[1763572979970,0.002,2928.7,2928.6,6.80826163]
[1763572980282,0.002,2928.7,2928.6,6.40275763]
[1763572980573,0.002,2928.7,2928.6,5.91835763]
[1763572980729,0.002,2928.7,2928.6,5.72147911]
[1763572982563,0.002,2928.7,2928.6,6.12698311]
[1763572982762,0.002,2929.0,2928.9,9.44539277]
[1763572982961,0.002,2929.0,2928.9,9.84644576]
[1763572983267,0.002,2929.3,2929.0,1.31249664]
[1763572983467,0.002,2929.3,2929.1,0.4844]
[1763572983670,0.002,2929.3,2929.2,0.43964301]
[1763572983985,1.234,2932.1,2929.2,0.43964301]
[1763572983986,0.1996,2931.6,2929.7,1.31249664]
[1763572984127,0.002,2932.1,2931.4,0.1861]
[1763572984327,0.002,2932.1,2931.4,0.591604]
[1763572984573,0.002,2932.1,2931.4,1.076004]
[1763572984784,0.002,2932.8,2932.0,8.13289613]
[1763572984941,0.002,2932.8,2931.5,0.4844]
[1763572985275,0.002,2932.8,2931.6,0.405504]
[1763572985576,0.002,2932.8,2931.8,0.405504]
[1763572985780,0.4516,2932.7,2931.5,3.41114854]
[1763572985986,0.4516,2932.7,2931.6,0.90699264]
[1763572986191,0.4516,2932.7,2931.5,0.90699264]
[1763572986495,0.4516,2932.7,2931.6,0.889904]
[1763572986648,0.002,2932.8,2931.6,0.889904]
[1763572986844,0.002,2932.8,2931.8,0.405504]
[1763572987303,0.002,2932.8,2932.0,0.405504]
[1763572987773,0.002,2932.8,2932.4,0.90699264]
[1763572987956,0.002,2932.8,2932.1,0.17968966]
[1763572988290,0.002,2932.8,2932.7,0.1607]
[1763572988650,0.002,2932.8,2932.7,0.6421]
[1763572988861,0.002,2932.8,2932.7,1.047604]
[1763572989244,0.002,2933.4,2932.8,0.405504]
[1763572989445,0.002,2933.8,2933.3,1.31249664]
[1763572989719,0.18,2935.7,2933.8,1.31249664]
[1763572989870,0.1996,2936.0,2934.5,1.31249664]
[1763572990494,0.18,2937.2,2935.0,1.31249664]
[1763572990495,0.4708,2936.9,2935.0,1.31249664]
[1763572990673,0.4708,2936.9,2935.0,1.02599264]
[1763572990858,0.4708,2936.9,2935.1,0.886904]
[1763572991059,0.18,2937.2,2935.5,1.31249664]
[1763572991260,0.4708,2938.1,2936.0,1.31249664]
[1763572991574,0.4708,2938.1,2935.1,0.05]
[1763572991575,0.18,2938.2,2937.0,1.31249664]
[1763572991746,0.4708,2938.1,2936.6,0.90699264]
[1763572991945,0.4708,2938.1,2935.8,1.31249664]
[1763572992184,0.4708,2938.1,2935.7,1.38839264]
[1763572992347,0.4708,2938.1,2934.8,0.05]
[1763572992348,0.90699264,2937.8,2935.1,3.40694234]
[1763572992684,0.405504,2937.6,2935.2,0.38883423]
[1763572992990,0.405504,2937.6,2935.2,0.87023423]
[1763572993190,0.4708,2937.5,2935.6,0.90699264]
[1763572993350,0.4708,2937.5,2935.7,1.068104]
[1763572993578,0.4708,2937.5,2935.9,0.405504]
[1763572993824,0.4708,2937.5,2935.5,8.25189613]
[1763572993825,0.4708,2937.5,2935.4,0.405504]
[1763572993976,0.405504,2937.4,2935.5,0.90699264]
[1763572994182,0.90699264,2938.0,2935.6,0.43136834]
[1763572994183,0.5898,2937.3,2935.6,0.43136834]
[1763572994395,0.4708,2937.3,2935.7,0.886904]
[1763572994627,0.4708,2937.3,2935.3,0.1812]
[1763572994628,0.405504,2937.1,2935.2,0.38883423]
[1763572994795,0.405504,2937.1,2934.5,6.8154711]
[1763572994992,0.405504,2936.9,2934.5,10.22320665]
[1763572995306,0.405504,2936.9,2934.6,0.4814]
[1763572995507,0.405504,2936.7,2934.5,3.40773555]
[1763572995681,0.405504,2936.7,2934.3,6.81593564]
[1763572995888,0.405504,2936.5,2934.3,3.40796782]
[1763572996216,0.44064242,2936.9,2934.9,8.13289613]
[1763572996217,0.4708,2936.9,2934.9,8.13289613]
[1763572996418,0.4708,2936.9,2935.1,0.405504]
[1763572996779,0.4708,2936.9,2935.2,0.4814]
[1763572997015,0.4708,2936.9,2935.3,0.405504]
[1763572997492,0.4708,2936.9,2935.4,0.4814]
[1763572997904,0.4708,2936.9,2935.6,1.31249664]
[1763572998105,0.4708,2936.9,2935.7,0.405504]
[1763572998281,0.4708,2936.9,2935.6,0.90699264]
[1763572998693,0.5898,2936.9,2935.6,0.90699264]
[1763572998882,0.5898,2936.9,2935.7,0.405504]
[1763572999220,0.18,2937.6,2936.2,1.31249664]
[1763572999417,0.4708,2938.1,2936.8,0.1812]
[1763572999617,0.4708,2938.1,2936.9,0.405504]
[1763572999780,0.18,2938.5,2937.1,0.90699264]
[1763573000119,0.18,2938.5,2937.2,0.886904]
[1763573000320,0.4708,2938.4,2936.6,0.4814]
[1763573000503,0.4708,2938.4,2936.6,3.40525832]
[1763573000820,0.405504,2938.3,2936.6,0.90699264]
[1763573001032,0.4708,2938.4,2936.7,0.405504]
[1763573001329,0.4708,2938.3,2936.6,1.3382314]
[1763573001531,0.4708,2938.3,2935.5,0.6626]
[1763573001532,0.405504,2938.2,2935.5,0.6626]
[1763573001731,0.405504,2938.2,2935.7,3.4063426]
[1763573001954,1.31249664,2937.8,2935.6,6.81291728]
[1763573002247,1.31249664,2937.8,2935.3,3.40680679]
[1763573002442,0.405504,2937.6,2935.3,6.81361358]
[1763573002599,0.405504,2937.6,2935.4,1.38839264]
[1763573002794,0.405504,2937.4,2935.4,1.38839264]
[1763573003095,0.6508,2937.5,2935.4,1.38839264]
[1763573003096,0.4708,2937.3,2935.6,0.405504]
[1763573003403,0.4708,2937.3,2935.5,0.4814]
[1763573003617,0.405504,2937.2,2935.5,0.4814]
[1763573003939,0.4708,2937.3,2935.7,0.90699264]
[1763573004226,0.18,2937.5,2935.8,0.77199099]
[1763573004227,0.405504,2937.1,2935.8,0.77199099]
[1763573004405,0.405504,2937.1,2935.2,3.58802004]
[1763573004406,0.405504,2937.1,2935.3,3.40673256]
[1763573004604,0.405504,2936.9,2935.0,0.4814]
[1763573004832,0.405504,2936.7,2934.3,3.90276782]
[1763573004992,0.405504,2936.7,2933.7,0.6565]
[1763573004993,0.405504,2936.3,2933.7,0.6565]
[1763573005199,0.405504,2936.3,2931.4,1.74507121]
[1763573005200,1.31249664,2935.8,2933.3,0.1965]
[1763573005418,1.31249664,2935.8,2933.6,0.4948]
[1763573005628,0.405504,2935.6,2933.3,0.1965]
[1763573005841,0.405504,2935.6,2933.4,6.81802686]
[1763573005992,0.405504,2935.4,2933.4,6.81802686]
[1763573006199,0.405504,2935.4,2932.9,3.40959459]
[1763573006200,0.405504,2935.2,2932.9,3.40959459]
[1763573006398,0.405504,2935.2,2932.9,10.72358377]
[1763573006607,1.40269264,2935.3,2932.8,3.59087765]
[1763573006608,0.405504,2935.0,2932.8,3.59087765]
[1763573006843,0.405504,2934.8,2932.8,3.40967765]
[1763573007362,0.405504,2934.8,2932.3,3.41026698]
[1763573007363,0.405504,2934.6,2932.3,6.82058452]
[1763573007531,1.31249664,2934.3,2934.0,0.001]
[1763573008023,0.405504,2933.8,2931.1,6.82337688]
[1763573008229,1.31249664,2933.5,2931.1,10.72986532]
[1763573008431,0.405504,2933.3,2931.1,7.31817688]
[1763573008658,0.405504,2933.3,2930.6,0.4948]
[1763573008831,0.405504,2933.1,2930.6,0.4948]
[1763573009246,0.405504,2932.9,2930.6,0.4948]
[1763573009578,0.405504,2932.9,2930.6,1.40179264]
[1763573009728,0.67651966,2932.8,2930.6,1.40179264]
[1763573009932,0.67651966,2932.8,2930.8,0.90699264]
[1763573010172,0.405504,2932.6,2930.8,0.90699264]
[1763573010573,0.405504,2932.4,2930.8,0.90699264]
[1763573010937,0.405504,2932.4,2929.6,3.41343141]
[1763573010938,0.173,2930.9,2929.4,3.41366832]
[1763573011174,0.173,2930.9,2929.4,7.21818347]
[1763573011469,0.405504,2930.7,2929.4,0.39084683]
[1763573011671,0.405504,2930.7,2929.3,6.82756972]
[1763573011828,0.405504,2930.5,2928.9,0.6913]
[1763573012030,0.405504,2930.5,2928.8,10.24310295]
[1763573012264,0.4957,2930.4,2928.9,0.90699264]
[1763573012771,0.578504,2930.9,2929.0,0.6913]
[1763573012978,0.4957,2930.8,2929.0,0.6913]
[1763573013140,0.4957,2930.8,2929.0,0.1965]
[1763573013343,0.4957,2930.8,2929.1,0.4948]
[1763573013844,0.4957,2930.8,2929.3,0.90699264]
[1763573014860,0.4957,2930.8,2929.3,1.40179264]